bitfinex/quotes_ETHUSD_20210701
["timestamp","ask_amount","ask_price","bid_price","bid_amount"]
[1625108223949,6.41664267,2200.4,2199.4,0.14]
[1625108224147,10.44434267,2200.4,2199.4,0.14]
[1625108224247,13.85363267,2200.4,2199.4,0.14]
[1625108224347,15.04933267,2200.4,2199.4,0.14]
[1625108224548,6.8184,2200.2,2199.4,0.14]
[1625108225133,5.01,2200.0,2199.4,0.14]
[1625108225234,5.01,2200.0,2199.3,0.01232913]
[1625108225331,5.01,2200.1,2199.3,0.01232913]
[1625108226133,6.36651901,2200.0,2199.3,0.01232913]
[1625108226231,6.81931,2199.9,2199.3,0.01232913]
[1625108226335,11.62961,2199.9,2199.3,0.01232913]
[1625108227034,4.8103,2199.9,2199.3,0.01232913]
[1625108228386,11.62958,2199.9,2199.3,0.01232913]
[1625108228794,4.8103,2199.9,2199.3,0.01232913]
[1625108228992,9.09214,2200.2,2199.3,0.01232913]
[1625108229240,9.09214,2200.2,2199.1,6.91416649]
[1625108229523,9.09214,2200.2,2199.2,0.06]
[1625108229623,9.09214,2200.2,2199.9,0.01232764]
[1625108230427,6.81871,2200.1,2199.9,0.01232764]
[1625108230531,11.82876,2200.4,2199.9,0.01232764]
[1625108230728,5.01,2200.2,2199.9,0.01232764]
[1625108233095,11.82847,2200.1,2199.9,0.01232764]
[1625108233293,6.81847,2200.1,2199.9,0.01232764]
[1625108233392,5.01,2200.0,2199.9,0.01232764]
[1625108234419,5.01,2200.0,2199.4,6.81811]
[1625108234619,5.01,2200.2,2199.4,6.81811]
[1625108234818,5.01,2200.2,2199.5,0.06]
[1625108234921,6.44839307,2200.3,2199.5,0.06]
[1625108235119,6.44839307,2200.3,2199.3,3.24]
[1625108235220,3.40947,2200.4,2199.4,6.66796861]
[1625108235320,3.40947,2200.4,2199.3,3.24]
[1625108235423,3.40947,2200.4,2199.6,6.8176]
[1625108235547,20.37503,2200.7,2199.7,6.56368859]
[1625108235548,23.78367,2200.7,2199.7,6.56368859]
[1625108235624,23.78367,2200.7,2199.7,6.7485003]
[1625108235722,13.69374,2200.7,2199.7,6.7485003]
[1625108235824,13.69374,2200.7,2199.6,0.14]
[1625108235926,20.08125794,2200.7,2199.6,0.14]
[1625108236120,20.08125794,2200.7,2199.6,5.15]
[1625108236594,13.69374,2200.7,2199.7,6.91048873]
[1625108236699,21.0247,2200.8,2200.1,6.81613]
[1625108236798,10.08904,2200.9,2200.1,13.45681084]
[1625108236899,1.0,2200.9,2200.3,5.01]
[1625108237000,1.0,2200.9,2200.3,10.83651405]
[1625108237498,1.0,2200.9,2200.4,0.22]
[1625108237798,3.4275,2201.2,2200.7,6.81395]
[1625108239227,3.4275,2201.2,2200.7,13.48138843]
[1625108239429,3.4275,2201.2,2200.8,0.34]
[1625108239527,3.4275,2201.2,2200.8,4.5443]
[1625108240529,3.4275,2201.2,2201.0,5.01]
[1625108240800,3.4275,2201.2,2201.1,0.14]
[1625108242202,3.41139665,2201.2,2200.7,6.81379]
[1625108242303,3.41139665,2201.2,2200.9,0.14]
[1625108242401,3.41139665,2201.2,2200.4,6.91627952]
[1625108242502,3.41139665,2201.2,2200.2,18.25011714]
[1625108242605,3.41139665,2201.2,2200.9,0.14]
[1625108243630,3.41139665,2201.2,2201.0,0.06]
[1625108243832,3.41139665,2201.2,2200.9,0.14]
[1625108244836,3.41139665,2201.2,2201.1,6.81266]
[1625108245566,3.41139665,2201.2,2200.9,0.14]
[1625108247410,3.41139665,2201.2,2200.9,6.95335]
[1625108247748,3.41139665,2201.2,2200.9,0.14]
[1625108247850,7.51369665,2201.2,2200.6,3.8]
[1625108247952,7.51369665,2201.2,2200.3,0.14]
[1625108248158,7.51369665,2201.2,2200.2,9.08613]
[1625108249101,7.51369665,2201.2,2201.0,0.01232747]
[1625108249701,7.51369665,2201.2,2200.6,0.0419235]
[1625108250319,7.51369665,2201.2,2200.6,2.63337636]
[1625108250423,7.51369665,2201.2,2200.9,6.81326]
[1625108250617,7.51369665,2201.2,2200.9,6.95326]
[1625108251224,3.41139665,2201.2,2200.9,6.95326]
[1625108251422,3.41139665,2201.2,2201.0,0.04]
[1625108251520,3.41139665,2201.2,2201.1,6.81276]
[1625108252059,3.41139665,2201.2,2201.1,6.87276]
[1625108252905,3.41139665,2201.2,2201.1,6.81276]
[1625108253808,3.41139665,2201.2,2201.1,6.95276]
[1625108254309,7.83157818,2202.1,2201.2,13.05]
[1625108254411,1.0,2202.1,2201.2,19.82896131]
[1625108254510,1.0,2202.1,2201.3,6.79839124]
[1625108254610,1.0,2202.1,2201.3,6.83839124]
[1625108254713,1.0,2202.1,2201.3,6.79839124]
[1625108254817,1.0,2202.1,2201.3,0.14]
[1625108254916,5.01,2202.0,2201.3,0.14]
[1625108255113,8.9805,2202.0,2201.3,0.14]
[1625108255512,15.79342,2202.0,2201.3,0.14]
[1625108255614,15.83342,2202.0,2201.3,0.14]
[1625108256363,5.01,2201.9,2201.3,0.14]
[1625108256609,5.01,2201.8,2201.3,0.14]
[1625108257012,10.78322,2202.0,2201.3,0.14]
[1625108257610,14.18995,2202.0,2201.3,0.14]
[1625108258116,6.66890085,2201.9,2201.3,0.14]
[1625108258213,6.8136,2201.7,2200.8,9.08399]
[1625108258313,11.8236,2201.7,2200.8,9.08399]
[1625108260558,5.01,2201.7,2200.8,9.08399]
[1625108260757,5.01,2201.7,2200.9,0.2]
[1625108261892,15.48068058,2201.9,2200.9,0.2]
[1625108262032,15.48068058,2201.9,2200.9,0.14]
[1625108262093,3.40673,2202.0,2201.2,6.81247]
[1625108262293,14.22762306,2202.1,2201.2,6.95247]
[1625108262388,7.41515306,2202.1,2201.2,6.95247]
[1625108262689,7.41515306,2202.1,2201.3,0.06]
[1625108262897,1.0,2202.1,2201.3,0.06]
[1625108263092,1.0,2202.1,2201.4,0.14]
[1625108263194,1.0,2202.1,2201.5,6.81156]
[1625108263195,7.43208352,2202.1,2201.5,6.81156]
[1625108263383,5.01,2202.0,2201.1,9.08287]
[1625108263444,5.01,2201.9,2201.2,0.14]
[1625108263538,5.01,2201.9,2200.8,9.08399]
[1625108263639,6.40432622,2201.8,2201.2,0.14]
[1625108263743,6.40432622,2201.8,2200.9,0.14]
[1625108263839,6.40432622,2201.8,2200.5,15.64176684]
[1625108263840,5.01,2201.6,2200.5,15.64176684]
[1625108263945,5.01,2201.6,2200.6,0.14]
[1625108264042,7.20934169,2201.5,2199.9,7.05045604]
[1625108264139,7.20934169,2201.5,2200.3,0.14]
[1625108264441,12.6179,2201.6,2200.3,0.14]
[1625108264542,3.40748,2201.5,2200.3,6.95481]
[1625108264642,16.69364,2201.6,2200.3,6.95481]
[1625108264742,16.69364,2201.6,2200.3,9.55546461]
[1625108264842,23.05866389,2201.6,2200.5,5.01]
[1625108265040,16.69364,2201.6,2200.6,0.14]
[1625108265156,15.55944,2201.6,2200.6,0.14]
[1625108265445,14.08314,2201.6,2200.6,0.14]
[1625108265540,14.08314,2201.6,2200.7,0.1]
[1625108265779,4.9974,2201.6,2200.9,6.81313]
[1625108265877,13.62833097,2201.8,2200.7,0.1]
[1625108265977,13.62833097,2201.8,2201.0,0.06]
[1625108266077,6.81313,2201.8,2200.9,0.14]
[1625108266878,6.81313,2201.8,2201.1,6.81268]
[1625108268730,6.81313,2201.8,2200.9,6.95344]
[1625108268829,14.84662,2201.8,2200.9,6.95344]
[1625108269026,5.01,2201.6,2200.9,6.95344]
[1625108269132,5.01,2201.6,2200.9,0.14]
[1625108269527,11.4404822,2201.8,2200.9,0.14]
[1625108269826,5.01,2201.6,2200.9,0.14]
[1625108269927,6.81369,2201.5,2200.9,0.14]
[1625108270029,5.01,2201.6,2200.9,0.14]
[1625108270148,11.4404822,2201.8,2200.9,0.14]
[1625108270244,3.40697,2201.6,2200.9,0.14]
[1625108271351,3.40697,2201.6,2201.0,0.06]
[1625108271452,14.84653,2201.8,2201.0,0.06]
[1625108271550,11.43974,2201.8,2200.9,5.15]
[1625108271748,12.67679,2201.9,2200.9,5.15]
[1625108271852,1.9483,2201.9,2200.9,5.15]
[1625108271949,1.0,2201.9,2201.0,0.1]
[1625108272479,3.40644,2202.0,2201.0,0.1]
[1625108273282,3.40644,2202.0,2200.9,5.01]
[1625108273483,16.73818,2202.0,2201.3,6.81218]
[1625108274284,5.01,2201.8,2200.9,9.08334]
[1625108274643,6.81293,2201.8,2200.9,9.08334]
[1625108276589,3.40662,2201.9,2200.9,9.08334]
[1625108276891,3.40662,2201.9,2201.0,0.1]
[1625108277248,3.40662,2201.9,2200.9,2.60065461]
[1625108278401,10.2191,2201.9,2201.2,6.81249]
[1625108279793,5.01,2201.8,2201.2,6.81249]
[1625108280393,4.40644,2202.0,2201.2,6.81249]
[1625108281094,10.76106545,2202.0,2201.2,6.81249]
[1625108281297,17.57308545,2202.0,2201.2,6.81249]
[1625108281397,11.21846,2202.0,2201.2,6.81249]
[1625108282099,14.62476,2202.0,2201.2,6.81249]
[1625108283052,13.62476,2202.0,2201.2,6.81249]
[1625108284236,15.81396,2202.0,2201.0,9.08332]
[1625108284437,20.52776,2202.0,2201.0,9.08332]
[1625108284938,20.52776,2202.0,2201.0,9.14332]
[1625108285139,20.52776,2202.0,2201.0,9.08332]
[1625108286016,9.21624,2202.0,2201.0,11.68397461]
[1625108286117,36.4475,2202.2,2201.0,11.68397461]
[1625108286216,31.4375,2202.2,2201.2,5.01]
[1625108286569,31.4375,2202.2,2201.3,0.14]
[1625108286966,31.4375,2202.2,2201.3,2.74065461]
[1625108287570,31.4375,2202.2,2201.7,6.81122]
[1625108287669,9.9415,2202.2,2201.7,6.81122]
[1625108289047,9.9326,2202.4,2201.8,0.14]
[1625108289152,9.9326,2202.4,2201.9,6.81011]
[1625108289348,9.9326,2202.4,2202.0,0.14]
[1625108289449,3.40535,2202.6,2202.0,0.14]
[1625108290393,3.40535,2202.6,2202.0,6.94974]
[1625108290788,1.0,2202.7,2202.0,6.94974]
[1625108290895,1.0,2202.7,2202.3,7.66112487]
[1625108290999,1.0,2202.7,2202.3,7.81752238]
[1625108291090,1.0,2202.7,2202.3,11.30752238]
[1625108291192,1.0,2202.7,2202.5,5.01]
[1625108291291,16.97670496,2203.8,2202.5,5.01]
[1625108291392,16.97670496,2203.8,2202.7,0.09713049]
[1625108291393,10.6007,2203.8,2202.7,0.09713049]
[1625108291490,10.6007,2203.8,2202.7,3.4533269]
[1625108291592,10.6007,2203.8,2202.8,7.84344334]
[1625108291692,21.056,2203.9,2202.9,0.0637217]
[1625108291893,10.1574,2203.9,2202.9,0.2637217]
[1625108291992,10.1574,2203.9,2203.0,0.16892403]
[1625108292094,10.1574,2203.9,2203.0,5.15]
[1625108292196,10.1574,2203.9,2203.0,0.15889727]
[1625108292294,10.1574,2203.9,2203.2,5.01]
[1625108292393,10.1574,2203.9,2203.2,3.635]
[1625108292492,10.1574,2203.9,2203.3,0.14]
[1625108292758,10.1574,2203.9,2203.2,3.635]
[1625108292841,10.1574,2203.9,2203.1,1.3033]
[1625108293839,10.1574,2203.9,2203.1,0.14]
[1625108295209,10.1574,2203.9,2203.1,6.94626]
[1625108296708,10.1574,2203.9,2203.1,0.14]
[1625108297329,5.01,2203.6,2202.9,2.60065461]
[1625108297434,7.00893093,2203.5,2202.9,0.14]
[1625108297630,6.2796,2203.6,2202.6,9.07602]
[1625108297631,6.2796,2203.6,2202.6,0.14]
[1625108297731,5.01,2203.3,2202.6,0.14]
[1625108297830,4.6958,2203.3,2202.6,0.14]
[1625108298434,4.5458,2203.3,2202.6,0.14]
[1625108299134,1.1313,2203.4,2202.6,0.14]
[1625108299233,5.01,2203.6,2202.6,0.14]
[1625108299335,10.2336,2203.8,2202.6,0.14]
[1625108299501,10.2336,2203.8,2202.7,0.14]
[1625108299698,10.2336,2203.8,2203.2,6.80593]
[1625108299796,10.1574,2203.9,2203.2,6.80593]
[1625108299898,10.1574,2203.9,2203.2,6.94593]
[1625108302636,10.1574,2203.9,2203.2,0.14]
[1625108303186,5.01,2203.7,2203.2,0.14]
[1625108303687,11.01641459,2203.8,2203.2,0.14]
[1625108304335,11.01641459,2203.8,2202.9,0.14]
[1625108304434,17.82354459,2203.8,2202.9,0.14]
[1625108304637,5.01,2203.6,2202.9,0.14]
[1625108305236,16.68144459,2203.8,2202.9,0.14]
[1625108305434,10.21105,2203.8,2202.9,0.14]
[1625108306640,6.41270779,2203.7,2202.9,0.14]
[1625108306744,0.06,2203.6,2202.6,2.60065461]
[1625108306969,0.06,2203.6,2201.9,3.4]
[1625108306970,5.01,2203.5,2201.9,3.4]
[1625108307066,7.23160686,2203.4,2201.9,2.4]
[1625108307162,12.0734547,2203.4,2201.9,0.14]
[1625108307262,5.01,2203.2,2201.9,0.14]
[1625108307363,6.4285444,2203.1,2201.9,0.14]
[1625108307564,6.4285444,2203.1,2202.0,0.12]
[1625108307662,5.01,2203.2,2202.0,0.12]
[1625108307862,11.46458472,2203.1,2202.0,0.12]
[1625108307970,5.01,2203.1,2202.0,0.12]
[1625108308168,5.01,2203.1,2201.9,0.14]
[1625108308364,5.01,2203.1,2202.0,5.01]
[1625108308909,5.01,2203.1,2202.0,7.61065461]
[1625108309107,13.51618415,2203.3,2202.0,7.61065461]
[1625108309108,6.70719415,2203.3,2202.0,7.61065461]
[1625108309208,22.33284405,2203.5,2202.1,0.14]
[1625108309311,15.8274,2203.5,2202.1,8.31532479]
[1625108309408,15.8274,2203.5,2202.8,6.80733]
[1625108309522,5.01,2203.5,2202.8,11.15993]
[1625108309608,5.01,2203.5,2202.8,11.29993]
[1625108310857,20.7632,2203.7,2202.8,11.29993]
[1625108311059,20.7632,2203.7,2202.9,0.1]
[1625108311158,20.7632,2203.7,2203.1,6.80632]
[1625108311261,10.2307,2203.7,2203.1,6.80632]
[1625108311359,5.01,2203.8,2203.1,6.94632]
[1625108311461,5.01,2203.7,2203.1,6.94632]
[1625108312764,10.1574,2203.9,2203.1,6.94632]
[1625108314009,5.01,2203.7,2203.1,6.94632]
[1625108314108,10.1574,2203.9,2203.1,6.94632]
[1625108314812,10.1574,2203.9,2203.1,10.88812]
[1625108315112,10.1574,2203.9,2203.2,0.06]
[1625108315255,10.1574,2203.9,2203.1,3.9418]
[1625108315355,10.1574,2203.9,2203.3,0.14]
[1625108316358,5.01,2203.7,2202.7,9.21581]
[1625108316460,6.35626765,2203.6,2202.7,9.21581]
[1625108316561,11.48546025,2203.6,2202.7,9.07581]
[1625108316663,6.47546025,2203.6,2202.4,9.2171]
[1625108316758,5.01,2203.4,2202.4,9.0771]
[1625108316859,6.65956673,2203.3,2202.4,9.0771]
[1625108317629,5.01,2203.1,2202.4,9.0771]
[1625108318134,11.81924,2203.1,2202.2,6.80917]
[1625108318234,18.26394349,2203.1,2202.2,6.80917]
[1625108318331,6.80924,2203.1,2202.2,6.80917]
[1625108318631,2.2848,2203.2,2202.2,6.80917]
[1625108319128,9.09362,2203.2,2202.2,6.80917]
[1625108319230,5.01,2203.1,2202.2,6.94917]
[1625108319330,5.01,2203.0,2202.2,6.94917]
[1625108319430,5.01,2203.1,2202.2,6.94917]
[1625108319533,2.2848,2203.2,2202.2,6.94917]
[1625108319752,7.2948,2203.2,2202.2,6.94917]
[1625108319853,7.2948,2203.2,2202.3,0.06]
[1625108319949,8.27526,2203.4,2202.3,0.06]
[1625108320252,8.27526,2203.4,2202.6,6.80821]
[1625108321709,4.8706,2203.4,2202.6,6.80821]
[1625108321861,20.8486,2203.6,2202.7,0.14]
[1625108322025,20.8486,2203.6,2202.7,0.18]
[1625108322425,20.8486,2203.6,2202.7,2.97205461]
[1625108322852,20.8486,2203.6,2203.1,6.80643]
[1625108322953,10.0818,2203.7,2203.1,6.80643]
[1625108323055,10.0818,2203.7,2203.1,0.14]
[1625108323156,5.01,2203.5,2202.8,0.14]
[1625108323253,18.57102,2203.9,2202.8,0.14]
[1625108323455,5.01,2203.7,2202.8,0.14]
[1625108323752,5.01,2203.6,2202.8,0.14]
[1625108323852,5.01,2203.6,2202.8,6.94759]
[1625108323853,6.8078,2203.5,2202.8,6.94759]
[1625108323957,10.6065,2203.5,2202.8,0.14]
[1625108325221,10.6065,2203.5,2202.8,6.94773]
[1625108325621,10.6065,2203.5,2202.8,0.14]
[1625108326994,10.9791376,2203.4,2202.8,0.14]
[1625108327123,10.9791376,2203.4,2202.1,9.07678]
[1625108327124,5.01,2203.3,2202.1,9.07678]
[1625108327266,12.79165601,2203.2,2202.1,9.07678]
[1625108327323,12.93165601,2203.2,2201.8,11.34533]
[1625108327522,3.40531,2202.9,2201.7,0.14]
[1625108327624,9.46538457,2202.9,2201.7,0.14]
[1625108327728,3.43207149,2202.8,2201.7,0.14]
[1625108327824,5.01,2202.6,2201.7,0.14]
[1625108327930,12.40949165,2202.6,2201.7,0.14]
[1625108328032,5.01,2202.6,2201.7,0.14]
[1625108328130,5.01,2202.6,2201.4,11.34756]
[1625108328234,5.01,2202.6,2201.3,6.95181]
[1625108328235,10.96742,2202.2,2201.3,6.95181]
[1625108328334,10.96742,2202.2,2201.3,6.81181]
[1625108328442,5.01,2202.0,2201.3,6.95181]
[1625108328531,5.01,2202.0,2201.3,0.14]
[1625108328627,5.01,2202.0,2201.1,2.43397128]
[1625108328826,12.7009005,2202.2,2201.1,2.43397128]
[1625108328925,5.0551,2202.2,2201.1,2.43397128]
[1625108329026,5.0551,2202.2,2201.2,0.2]
[1625108329226,5.01,2202.0,2201.1,2.43397128]
[1625108329862,5.0551,2202.2,2201.1,2.43397128]
[1625108330063,5.01,2202.0,2201.1,2.43397128]
[1625108330466,11.82251,2202.0,2201.2,6.81214]
[1625108330664,11.82251,2202.0,2201.3,0.04]
[1625108331468,11.82251,2202.0,2201.2,6.81214]
[1625108332213,11.82251,2202.0,2201.3,0.14]
[1625108332813,5.01,2202.0,2201.3,6.95203]
[1625108333666,5.01,2202.1,2201.3,6.95203]
[1625108333768,4.99930934,2202.1,2201.3,6.95203]
[1625108334416,11.81149934,2202.1,2201.3,6.95203]
[1625108334517,6.81219,2202.1,2201.3,6.95203]
[1625108334715,6.81219,2202.1,2201.4,0.06]
[1625108335416,6.81219,2202.1,2201.3,6.95203]
[1625108335817,6.81219,2202.1,2201.3,6.45203]
[1625108336319,0.8494,2202.2,2201.3,6.45203]
[1625108336421,5.01,2202.4,2201.3,6.59203]
[1625108336519,5.01,2202.5,2201.3,6.59203]
[1625108336918,5.01,2202.5,2201.4,0.04]
[1625108337124,5.01,2202.5,2201.4,6.63927517]
[1625108337215,5.01,2202.5,2201.5,0.14]
[1625108337367,29.8862,2202.7,2201.9,6.81004]
[1625108337462,29.8862,2202.7,2201.9,4.3568]
[1625108337565,20.0242,2202.7,2202.0,6.94081435]
[1625108337862,10.1667,2202.7,2202.0,6.94081435]
[1625108337969,6.85,2202.8,2202.0,6.98081435]
[1625108338919,6.85,2202.8,2202.0,0.14]
[1625108339022,6.85,2202.8,2202.1,9.07858]
[1625108339220,6.85,2202.8,2202.1,0.14]
[1625108339819,20.3895,2203.0,2202.1,0.14]
[1625108340020,20.3895,2203.0,2202.1,6.94953]
[1625108340122,20.3895,2203.0,2202.2,6.71154526]
[1625108340322,20.3895,2203.0,2202.3,0.14]
[1625108342167,20.3895,2203.0,2202.3,6.9489]
[1625108344213,20.3895,2203.0,2202.3,0.14]
[1625108344314,20.3895,2203.0,2202.1,6.63956303]
[1625108344416,20.3895,2203.0,2202.1,6.77956303]
[1625108344612,20.3895,2203.0,2202.1,0.14]
[1625108345013,20.3895,2203.0,2202.1,5.15]
[1625108345113,20.3895,2203.0,2202.1,11.76405068]
[1625108345614,20.3895,2203.0,2202.1,5.15]
[1625108345716,20.3895,2203.0,2202.1,0.14]
[1625108345814,20.3895,2203.0,2202.1,5.15]
[1625108346014,20.3895,2203.0,2202.1,11.86986064]
[1625108346215,27.19889,2203.0,2202.1,18.67937064]
[1625108346316,27.19889,2203.0,2202.2,0.08]
[1625108346716,27.19889,2203.0,2202.1,12.72715934]
[1625108346815,27.19889,2203.0,2202.1,6.15]
[1625108346920,27.19889,2203.0,2202.1,12.70936926]
[1625108347118,20.3895,2203.0,2202.1,12.70936926]
[1625108347216,20.3895,2203.0,2202.2,0.04]
[1625108347324,20.3895,2203.0,2202.5,6.80846]
[1625108347419,10.4209,2203.0,2202.5,11.17076]
[1625108350032,10.4209,2203.0,2202.5,4.3623]
[1625108350134,10.4209,2203.0,2202.4,0.14]
[1625108350235,10.4209,2203.0,2202.1,7.64526242]
[1625108350334,10.4209,2203.0,2202.1,1.14]
[1625108351083,10.4209,2203.0,2202.3,6.80913]
[1625108351784,14.0,2203.1,2202.3,6.80913]
[1625108351889,14.0,2203.1,2202.4,0.14]
[1625108352200,14.0,2203.1,2202.7,6.80788]
[1625108353585,14.0,2203.1,2202.7,6.94788]
[1625108355924,14.0,2203.1,2202.7,0.14]
[1625108356025,14.0,2203.1,2202.4,9.21717]
[1625108356778,14.0,2203.1,2202.4,0.14]
[1625108356878,5.01,2202.9,2202.2,1.0]
[1625108356976,5.01,2202.9,2201.9,9.21773]
[1625108357079,12.32472506,2202.9,2201.9,9.07773]
[1625108357177,12.32472506,2202.9,2201.4,11.34704]
[1625108357277,0.14,2202.8,2201.4,11.34704]
[1625108357376,7.86531,2202.8,2201.4,11.34704]
[1625108357478,7.84402007,2202.8,2201.4,11.34704]
[1625108357576,5.01,2202.6,2201.4,11.34704]
[1625108357980,6.81141,2202.3,2201.6,6.81124]
[1625108358076,10.87121,2202.3,2201.4,11.34704]
[1625108358178,10.87121,2202.3,2201.2,0.14]
[1625108358578,10.87121,2202.3,2201.3,0.08]
[1625108358931,5.01,2202.1,2201.2,0.14]
[1625108359228,8.07524,2202.2,2201.5,6.8116]
[1625108359428,8.07524,2202.2,2201.6,0.14]
[1625108359627,1.2633,2202.2,2201.6,0.14]
[1625108359729,1.2633,2202.2,2201.4,5.01]
[1625108359829,1.2633,2202.2,2201.5,0.14]
[1625108360335,6.81072,2202.6,2201.8,6.81054]
[1625108360434,31.5629,2202.7,2201.8,6.81054]
[1625108360534,31.5629,2202.7,2201.9,7.03441463]
[1625108360934,31.5629,2202.7,2201.9,0.14]
[1625108362479,31.5629,2202.7,2202.1,6.80958]
[1625108362578,21.1275,2202.7,2202.1,6.80958]
[1625108362677,10.3809,2202.7,2202.1,6.80958]
[1625108362778,10.3809,2202.7,2202.2,0.14]
[1625108363083,10.3809,2202.7,2201.9,0.14]
[1625108363621,5.01,2202.5,2201.6,1.0]
[1625108363723,5.01,2202.5,2201.6,1.14]
[1625108363823,5.01,2202.5,2201.6,1.0]
[1625108364020,5.01,2202.4,2201.6,1.0]
[1625108364118,3.40621,2202.3,2201.6,1.0]
[1625108364219,4.51571,2202.3,2201.6,1.0]
[1625108364317,5.01,2202.1,2201.6,1.0]
[1625108364424,8.9501,2202.1,2201.6,1.0]
[1625108364723,15.76229,2202.1,2201.0,6.81279]
[1625108364825,15.76229,2202.1,2200.9,0.14]
[1625108364922,12.41281778,2202.0,2200.9,0.14]
[1625108365026,14.51022023,2202.0,2200.9,0.14]
[1625108365127,8.60734746,2201.9,2200.5,1.0]
[1625108365224,3.4076273,2201.7,2200.5,1.0]
[1625108365323,5.31886678,2201.5,2200.5,1.0]
[1625108365422,7.81736278,2201.4,2200.5,1.0]
[1625108365542,12.82736278,2201.4,2200.5,1.0]
[1625108365647,7.81736278,2201.4,2200.5,1.0]
[1625108365746,5.01,2201.2,2200.0,0.14]
[1625108365846,6.81642,2200.8,2199.8,6.81642]
[1625108365949,10.99232,2200.8,2199.8,6.81642]
[1625108366192,10.99232,2200.8,2199.8,13.35921455]
[1625108366291,10.99232,2200.8,2199.8,6.81642]
[1625108366392,10.99232,2200.8,2199.8,6.85642]
[1625108366892,10.99232,2200.8,2199.8,13.45112401]
[1625108366993,4.1759,2200.8,2199.8,13.45112401]
[1625108367261,9.08773,2201.3,2200.0,5.01]
[1625108367367,9.08773,2201.3,2200.1,7.12810085]
[1625108367460,10.2277,2201.4,2200.1,7.09035047]
[1625108367561,5.01,2201.2,2200.1,7.09035047]
[1625108367901,5.01,2201.2,2200.0,0.14]
[1625108369206,15.97106,2201.2,2200.0,6.9558]
[1625108369802,15.97106,2201.2,2200.1,6.71002013]
[1625108370030,15.97106,2201.2,2200.1,6.68192752]
[1625108370124,15.97106,2201.2,2200.0,6.9558]
[1625108370222,15.97106,2201.2,2200.1,6.64554785]
[1625108370322,15.97106,2201.2,2200.1,6.63882275]
[1625108370423,15.97106,2201.2,2200.0,6.9558]
[1625108370923,15.97106,2201.2,2200.1,6.63052807]
[1625108371025,15.97106,2201.2,2200.1,6.71393434]
[1625108371223,15.97106,2201.2,2200.0,6.9558]
[1625108371324,5.01,2201.1,2200.0,6.9558]
[1625108371429,11.82596,2201.0,2200.0,6.9558]
[1625108371825,11.82596,2201.0,2200.1,6.77219514]
[1625108372279,11.82596,2201.0,2200.0,6.9558]
[1625108372477,11.82596,2201.0,2200.1,0.1]
[1625108372577,11.82596,2201.0,2200.0,6.9558]
[1625108373330,11.82596,2201.0,2200.0,0.14]
[1625108373432,11.82596,2201.0,2199.8,14.20936049]
[1625108373632,15.23438,2201.0,2199.8,14.20936049]
[1625108373733,5.01,2200.9,2199.8,14.20936049]
[1625108373833,5.01,2200.8,2199.8,14.20936049]
[1625108373931,5.01,2200.8,2199.9,0.08]
[1625108374232,5.01,2200.8,2199.8,7.39283049]
[1625108374332,11.82647,2200.8,2199.8,14.20930049]
[1625108374432,11.82647,2200.8,2199.8,6.81647]
[1625108374574,11.82647,2200.8,2199.9,6.66954605]
[1625108374775,5.01,2200.8,2199.9,6.66954605]
[1625108374876,5.01,2200.8,2199.8,1.0]
[1625108374973,5.01,2200.8,2200.0,0.08]
[1625108375174,5.01,2200.8,2199.8,1.0]
[1625108375276,9.0995,2200.8,2199.8,7.67825995]
[1625108375582,9.0995,2200.8,2199.7,12.49538]
[1625108375678,5.01,2200.7,2199.8,6.81637]
[1625108376483,5.01,2200.7,2199.7,12.49538]
[1625108376579,5.01,2200.7,2199.7,11.49538]
[1625108376684,5.01,2200.7,2199.7,0.14]
[1625108376912,5.01,2200.7,2199.7,6.95667]
[1625108377213,5.01,2200.7,2199.8,0.08]
[1625108377417,5.01,2200.7,2199.7,13.56323665]
[1625108377516,5.01,2200.7,2199.7,6.95667]
[1625108377766,5.01,2200.7,2199.7,13.64714335]
[1625108378066,5.01,2200.7,2199.7,6.95667]
[1625108378568,5.01,2200.7,2199.7,7.95667]
[1625108379120,5.01,2200.7,2199.7,1.14]
[1625108379420,5.01,2200.7,2199.7,7.78940551]
[1625108379521,11.82685,2200.7,2199.7,14.60613551]
[1625108379619,11.82685,2200.7,2199.8,0.08]
[1625108380171,5.01,2200.6,2199.7,1.14]
[1625108380272,5.01,2200.6,2199.4,1.0]
[1625108380372,6.82091801,2200.5,2199.4,1.14]
[1625108380478,6.82091801,2200.5,2199.4,1.0]
[1625108380572,5.01,2200.3,2199.4,1.0]
[1625108380671,11.82821,2200.3,2199.4,1.0]
[1625108380773,16.12161,2200.3,2199.4,1.0]
[1625108380873,5.01,2200.2,2199.4,1.0]
[1625108381374,5.01,2200.2,2199.2,9.09026]
[1625108382075,5.01,2200.2,2199.3,6.55966375]
[1625108382317,5.01,2200.2,2199.3,6.80146512]
[1625108382408,4.2934,2200.3,2199.4,0.18]
[1625108382607,4.2934,2200.3,2199.4,0.32]
[1625108383309,4.2934,2200.3,2199.6,6.81684]
[1625108384527,4.2934,2200.3,2199.5,6.85747215]
[1625108384626,4.2934,2200.3,2199.4,6.95759]